fUST/lending_fUST_20250812
["ID","MTS","AMOUNT","RATE_DAILY","PERIOD"]
[378741349,1754998251075,-525.41473135,0.00019921,2]
[378741350,1754998251085,-460.0,0.00019933,2]
[378741351,1754998251094,-469.48,0.00019934,2]
[378741352,1754998251103,-611.21,0.00019934,2]
[378741353,1754998251112,-484.87,0.00019934,2]
[378741354,1754998251121,-601.02774622,0.00019934,2]
[378741355,1754998251131,-496.01,0.00019934,2]
[378741356,1754998251141,-637.61,0.00019934,2]
[378741357,1754998251150,-2239.7,0.00019934,2]
[378741358,1754998251159,-460.0,0.00019934,2]
[378741359,1754998251169,-460.0,0.00019934,2]
[378741360,1754998251179,-460.0,0.00019934,2]
[378741361,1754998251189,-3537.19,0.00019934,2]
[378741362,1754998251198,-590.83,0.00019934,2]
[378741363,1754998251208,-1389.16,0.00019934,2]
[378741364,1754998251218,-943.66,0.00019934,2]
[378741365,1754998251228,-460.0,0.00019934,2]
[378741366,1754998251238,-460.0,0.00019934,2]
[378741367,1754998251248,-904.46,0.00019934,2]
[378741368,1754998251257,-1295.71,0.00019934,2]
[378741369,1754998251267,-518.19,0.00019934,2]
[378741370,1754998251276,-460.0,0.00019934,2]
[378741371,1754998251286,-1259.18,0.00019934,2]
[378741372,1754998251295,-328.41696415,0.00019934,2]
[378741373,1754998251305,-479.31,0.00019934,2]
[378741374,1754998251314,-779.15,0.00019934,2]
[378741375,1754998251324,-460.0,0.00019934,2]
[378741376,1754998251333,-723.23,0.00019934,2]
[378741377,1754998251343,-1003.25,0.00019934,2]
[378741378,1754998251353,-3048.5,0.00019934,2]
[378741379,1754998251363,-460.0,0.00019934,2]
[378741380,1754998251373,-564.06,0.00019934,2]
[378741381,1754998251383,-1844.16,0.00019934,2]
[378741382,1754998251393,-460.0,0.00019935,2]
[378741383,1754998251403,-460.0,0.00019935,2]
[378741384,1754998251412,-886.07,0.00019935,2]
[378741385,1754998251422,-460.0,0.00019935,2]
[378741386,1754998251432,-637.77,0.00019935,2]
[378741387,1754998251441,-460.0,0.00019935,2]
[378741388,1754998251451,-504.21,0.00019935,2]
[378741389,1754998251461,-460.0,0.00019935,2]
[378741390,1754998251470,-474.64,0.00019935,2]
[378741391,1754998251480,-460.0,0.00019935,2]
[378741392,1754998251489,-460.0,0.00019935,2]
[378741393,1754998251499,-460.0,0.00019935,2]
[378741394,1754998251508,-460.0,0.00019935,2]
[378741395,1754998251518,-460.0,0.00019935,2]
[378741396,1754998251527,-460.0,0.00019935,2]
[378741397,1754998251536,-460.0,0.00019935,2]
[378741398,1754998251546,-186.34970719,0.00019935,2]
[378741399,1754998251555,-460.0,0.00019935,2]
[378741400,1754998251564,-460.0,0.00019935,2]
[378741401,1754998251574,-620.23,0.00019935,2]
[378741402,1754998251583,-460.0,0.00019935,2]
[378741403,1754998251593,-460.0,0.00019935,2]
[378741404,1754998251602,-455.0548603,0.00019935,2]
[378741405,1754998251611,-460.0,0.00019935,2]
[378741406,1754998251620,-460.0,0.00019935,2]
[378741407,1754998251630,-901.27,0.00019935,2]
[378741408,1754998251640,-548.15,0.00019935,2]
[378741409,1754998251650,-811.75,0.00019935,2]
[378741410,1754998251659,-552.85,0.00019935,2]
[378741411,1754998251669,-463.69,0.00019935,2]
[378741412,1754998251679,-460.0,0.00019935,2]
[378741413,1754998251689,-2248.59,0.00019935,2]
[378741414,1754998251699,-460.0,0.00019935,2]
[378741415,1754998251708,-1065.48,0.00019935,2]
[378741416,1754998251718,-460.0,0.00019935,2]
[378741417,1754998251727,-647.39,0.00019935,2]
[378741418,1754998251737,-8580.32,0.00019935,2]
[378741419,1754998251746,-460.0,0.00019935,2]
[378741420,1754998251755,-460.0,0.00019935,2]
[378741421,1754998251765,-151.0,0.00019935,2]
[378741422,1754998251774,-2358.67,0.00019935,2]
[378741423,1754998251784,-1207.62,0.00019935,2]
[378741424,1754998251794,-460.0,0.00019935,2]
[378741425,1754998251803,-3336.58,0.00019935,2]
[378741426,1754998251812,-677.46,0.00019935,2]
[378741427,1754998251822,-826.8,0.00019935,2]
[378741428,1754998251831,-460.0,0.00019935,2]
[378741429,1754998251841,-151.0,0.00019935,2]
[378741430,1754998251851,-220.13047612,0.00019935,2]
[378741431,1754998251860,-153.175718,0.00019935,2]
[378741432,1754998251870,-484.1,0.00019935,2]
[378741433,1754998251885,-460.0,0.00019935,2]
[378741434,1754998251894,-2378.84,0.00019935,2]
[378741435,1754998251903,-460.0,0.00019935,2]
[378741436,1754998251913,-1389.87,0.00019935,2]
[378741437,1754998251923,-1008.12,0.00019935,2]
[378741438,1754998251932,-1305.71,0.00019935,2]
[378741439,1754998251941,-888.95,0.00019935,2]
[378741440,1754998251952,-759.71,0.00019935,2]
[378741441,1754998251961,-726.84,0.00019935,2]
[378741442,1754998251971,-493.71,0.00019935,2]
[378741443,1754998251980,-460.0,0.00019935,2]
[378741444,1754998251991,-672.44,0.00019935,2]
[378741445,1754998252001,-460.0,0.00019935,2]
[378741446,1754998252011,-1402.11,0.00019935,2]
[378741447,1754998252020,-1862.43,0.00019935,2]
[378741448,1754998252030,-1768.4,0.00019935,2]
[378741449,1754998252040,-500.0,0.00019973,2]
[378741450,1754998252050,-500.251964,0.00019973,2]
[378741451,1754998252059,-500.43418225,0.00019973,2]
[378741452,1754998252068,-500.0,0.00019973,2]
[378741453,1754998252077,-500.0,0.00019973,2]
[378741454,1754998252087,-500.0,0.00019973,2]
[378741455,1754998252097,-500.0,0.00019973,2]
[378741456,1754998252106,-500.0,0.00019973,2]
[378741457,1754998252116,-189.76244907,0.00019973,2]
[378741458,1754998252126,-7009.30053395,0.0002,2]
[378741459,1754998252136,-14404.56839384,0.0002,2]
[378741460,1754998252145,-56078.723895,0.0002,2]
[378741461,1754998252155,-458.6179049,0.0002,20]
[378741462,1754998252164,-364.17042047,0.0002,2]
[378741463,1754998252175,-12622.87158752,0.0002,2]
[378741464,1754998252195,-7238.15193035,0.0002,10]
[378741465,1754998252209,-12622.29479908,0.0002,2]
[378741466,1754998252218,-6339.00987476,0.0002,2]
[378741467,1754998252239,-1001.32794902,0.0002,2]
[378741468,1754998252253,-4000.0,0.0002,4]
[378741469,1754998252262,-5133.89767515,0.0002,2]
[378741470,1754998252272,-460.0,0.00020033,2]
[378741471,1754998252281,-1093.94,0.00020033,2]
[378741472,1754998252290,-460.0,0.00020033,2]
[378741473,1754998252300,-460.0,0.00020033,2]
[378741474,1754998252310,-151.0,0.00020033,2]
[378741475,1754998252319,-665.46,0.00020033,2]
[378741476,1754998252328,-151.0,0.00020033,2]
[378741477,1754998252337,-460.0,0.00020033,2]
[378741478,1754998252346,-151.0,0.00020033,2]
[378741479,1754998252355,-151.0,0.00020033,2]
[378741480,1754998252365,-460.0,0.00020033,2]
[378741481,1754998252375,-460.0,0.00020033,2]
[378741482,1754998252384,-599.71,0.00020033,2]
[378741483,1754998252394,-460.0,0.00020033,2]
[378741484,1754998252403,-460.0,0.00020033,2]
[378741485,1754998252413,-1034.08,0.00020033,2]
[378741486,1754998252422,-460.0,0.00020033,2]
[378741487,1754998252431,-460.0,0.00020033,2]
[378741488,1754998252441,-1358.1,0.00020033,2]
[378741489,1754998252450,-460.0,0.00020033,2]
[378741490,1754998252460,-460.0,0.00020033,2]
[378741491,1754998252470,-460.0,0.00020033,2]
[378741492,1754998252479,-460.0,0.00020033,2]
[378741493,1754998252489,-454.3182954,0.00020034,4]
[378741494,1754998252498,-151.0,0.00020036,2]
[378741495,1754998252507,-151.0,0.00020036,2]
[378741496,1754998252516,-151.0,0.00020036,2]
[378741497,1754998252526,-3145.559633,0.00020036,2]
[378741498,1754998252535,-3145.559633,0.00020036,2]
[378741499,1754998252545,-1585.0,0.00020045,2]
[378741500,1754998252554,-200.02038073,0.00020045,2]
[378741501,1754998252564,-151.0,0.00020045,2]
[378741502,1754998252573,-151.0,0.00020045,2]
[378741503,1754998252582,-2475.0,0.00020045,2]
[378741504,1754998252592,-500.0,0.00020045,2]
[378741505,1754998252601,-258.11313872,0.00020045,2]
[378741506,1754998252611,-151.0,0.00020045,2]
[378741507,1754998252620,-151.0,0.00020045,2]
[378741508,1754998252629,-606.22312735,0.00020045,2]
[378741509,1754998252639,-626.77747692,0.00020045,2]
[378741510,1754998252648,-500.0,0.00020045,2]
[378741511,1754998252659,-151.0,0.00020045,2]
[378741512,1754998252668,-151.0,0.00020045,2]
[378741513,1754998252677,-500.0,0.00020045,2]
[378741514,1754998252686,-151.0,0.00020045,2]
[378741515,1754998252696,-151.0,0.00020045,2]
[378741516,1754998252705,-500.0,0.00020045,2]
[378741517,1754998252715,-151.0,0.00020045,2]
[378741518,1754998252724,-151.0,0.00020045,2]
[378741519,1754998252734,-151.0,0.00020045,2]
[378741520,1754998252743,-500.0,0.00020045,2]
[378741521,1754998252754,-151.0,0.00020045,2]
[378741522,1754998252763,-168.0,0.00020099,2]
[378741523,1754998252773,-151.0,0.000201,3]
[378741524,1754998252783,-301.0,0.00020139,2]
[378741525,1754998252792,-299.5,0.00020144,2]
[378741526,1754998252802,-168.0,0.00020167,2]
[378741527,1754998252811,-200.0,0.00020175,15]
[378741528,1754998252820,-200.0,0.00020175,15]
[378741529,1754998252830,-200.0,0.00020175,15]
[378741530,1754998252840,-200.0,0.00020175,15]
[378741531,1754998252850,-320.0,0.00020175,15]
[378741532,1754998252860,-151.0,0.00020185,2]
[378741533,1754998252871,-151.0,0.00020185,2]
[378741534,1754998252883,-425.137583,0.00020187,2]
[378741535,1754998252894,-460.0,0.00020207,2]
[378741536,1754998252903,-611.21,0.00020208,2]
[378741537,1754998252913,-484.87,0.00020208,2]
[378741538,1754998252923,-496.01,0.00020208,2]
[378741539,1754998252933,-637.61,0.00020208,2]
[378741540,1754998252942,-2239.7,0.00020208,2]
[378741541,1754998252952,-460.0,0.00020208,2]
[378741542,1754998252964,-460.0,0.00020208,2]
[378741543,1754998252974,-460.0,0.00020208,2]
[378741544,1754998252985,-3537.19,0.00020208,2]
[378741545,1754998252996,-590.83,0.00020208,2]
[378741546,1754998253006,-1389.16,0.00020208,2]
[378741547,1754998253016,-943.66,0.00020208,2]
[378741548,1754998253025,-203.26591154,0.00020208,2]
[378741549,1754998253035,-460.0,0.00020208,2]
[378741550,1754998253045,-904.46,0.00020208,2]
[378741551,1754998253056,-1295.71,0.00020208,2]
[378741552,1754998253065,-518.19,0.00020208,2]
[378741553,1754998253074,-460.0,0.00020208,2]
[378741554,1754998253084,-1259.18,0.00020208,2]
[378741555,1754998253093,-479.31,0.00020208,2]
[378741556,1754998253102,-779.15,0.00020208,2]
[378741557,1754998253111,-460.0,0.00020208,2]
[378741558,1754998253121,-723.23,0.00020208,2]
[378741559,1754998253131,-1003.25,0.00020208,2]
[378741560,1754998253141,-3048.5,0.00020208,2]
[378741561,1754998253150,-460.0,0.00020208,2]
[378741562,1754998253159,-564.06,0.00020208,2]
[378741563,1754998253168,-1844.16,0.00020208,2]
[378741564,1754998253178,-460.0,0.00020209,2]
[378741565,1754998253187,-886.07,0.00020209,2]
[378741566,1754998253197,-460.0,0.00020209,2]
[378741567,1754998253207,-637.77,0.00020209,2]
[378741568,1754998253216,-460.0,0.00020209,2]
[378741569,1754998253226,-504.21,0.00020209,2]
[378741570,1754998253235,-460.0,0.00020209,2]
[378741571,1754998253246,-474.64,0.00020209,2]
[378741572,1754998253256,-284.85469363,0.00020209,2]
[378741573,1754998253265,-460.0,0.00020209,2]
[378741574,1754998253275,-460.0,0.00020209,2]
[378741575,1754998253284,-460.0,0.00020209,2]
[378741576,1754998253293,-460.0,0.00020209,2]
[378741577,1754998253303,-460.0,0.00020209,2]
[378741578,1754998253314,-460.0,0.00020209,2]
[378741579,1754998253325,-460.0,0.00020209,2]
[378741580,1754998253334,-620.23,0.00020209,2]
[378741581,1754998253344,-460.0,0.00020209,2]
[378741582,1754998253354,-460.0,0.00020209,2]
[378741583,1754998253363,-460.0,0.00020209,2]
[378741584,1754998253520,-460.0,0.00020209,2]
[378741585,1754998253531,-901.27,0.00020209,2]
[378741586,1754998253540,-548.15,0.00020209,2]
[378741587,1754998253549,-811.75,0.00020209,2]
[378741588,1754998253559,-552.85,0.00020209,2]
[378741589,1754998253568,-463.69,0.00020209,2]
[378741590,1754998253577,-460.0,0.00020209,2]
[378741591,1754998253586,-2248.59,0.00020209,2]
[378741592,1754998253595,-460.0,0.00020209,2]
[378741593,1754998253605,-1065.48,0.00020209,2]
[378741594,1754998253615,-460.0,0.00020209,2]
[378741595,1754998253624,-647.39,0.00020209,2]
[378741596,1754998253633,-8580.32,0.00020209,2]
[378741597,1754998253643,-460.0,0.00020209,2]
[378741598,1754998253652,-2358.67,0.00020209,2]
[378741599,1754998253662,-1207.62,0.00020209,2]
[378741600,1754998253672,-460.0,0.00020209,2]
[378741601,1754998253682,-3336.58,0.00020209,2]
[378741602,1754998253691,-677.46,0.00020209,2]
[378741603,1754998253702,-826.8,0.00020209,2]
[378741604,1754998253712,-460.0,0.00020209,2]
[378741605,1754998253722,-484.1,0.00020209,2]
[378741606,1754998253731,-460.0,0.00020209,2]
[378741607,1754998253740,-2378.84,0.00020209,2]
[378741608,1754998253750,-460.0,0.00020209,2]
[378741609,1754998253759,-1389.87,0.00020209,2]
[378741610,1754998253768,-1008.12,0.00020209,2]
[378741611,1754998253777,-1305.71,0.00020209,2]
[378741612,1754998253786,-888.95,0.00020209,2]
[378741613,1754998253795,-759.71,0.00020209,2]
[378741614,1754998253805,-726.84,0.00020209,2]
[378741615,1754998253814,-460.0,0.00020209,2]
[378741616,1754998253823,-672.44,0.00020209,2]
[378741617,1754998253832,-505.88,0.00020209,2]
[378741618,1754998253841,-1402.11,0.00020209,2]
[378741619,1754998253852,-1862.43,0.00020209,2]
[378741620,1754998253862,-1768.4,0.00020209,2]
[378741621,1754998253871,-151.0,0.00020222,2]
[378741622,1754998253885,-18502.69577858,0.00020222,2]
[378741623,1754998253898,-151.0,0.00020222,2]
[378741624,1754998253909,-151.0,0.00020222,2]
[378741625,1754998253921,-151.0,0.00020222,2]
[378741626,1754998253930,-454.3182954,0.00020223,4]
[378741627,1754998253940,-260.0,0.00020228,2]
[378741628,1754998253949,-168.0,0.00020287,2]
[378741629,1754998253958,-151.0,0.000203,4]
[378741630,1754998253968,-40000.0,0.000203,4]
[378741631,1754998253977,-205.83052,0.000203,2]
[378741632,1754998253987,-151.0,0.000203,2]
[378741633,1754998253996,-460.0,0.00020307,2]
[378741634,1754998254005,-1093.94,0.00020307,2]
[378741635,1754998254015,-460.0,0.00020307,2]
[378741636,1754998254024,-460.0,0.00020307,2]
[378741637,1754998254033,-665.46,0.00020307,2]
[378741638,1754998254043,-460.0,0.00020307,2]
[378741639,1754998254052,-460.0,0.00020307,2]
[378741640,1754998254062,-460.0,0.00020307,2]
[378741641,1754998254071,-599.71,0.00020307,2]
[378741642,1754998254080,-460.0,0.00020307,2]
[378741643,1754998254089,-460.0,0.00020307,2]
[378741644,1754998254099,-1034.08,0.00020307,2]
[378741645,1754998254108,-460.0,0.00020307,2]
[378741646,1754998254117,-460.0,0.00020307,2]
[378741647,1754998254127,-1358.1,0.00020307,2]
[378741648,1754998254136,-460.0,0.00020307,2]
[378741649,1754998254146,-460.0,0.00020307,2]
[378741650,1754998254156,-460.0,0.00020307,2]
[378741651,1754998254166,-222.614013,0.00020308,2]
[378741652,1754998254175,-222.614013,0.00020308,2]
[378741653,1754998254185,-2278.97831416,0.00020318,2]
[378741654,1754998254194,-4051.51700294,0.00020318,2]
[378741655,1754998254204,-6330.4953171,0.00020318,2]
[378741656,1754998254214,-9106.79734337,0.00020318,2]
[378741657,1754998254223,-3079.3115633,0.00020318,2]
[378741658,1754998254232,-1585.0,0.00020319,2]
[378741659,1754998254242,-277.0284541,0.00020319,2]
[378741660,1754998254251,-201.04585953,0.00020319,2]
[378741661,1754998254260,-2475.0,0.00020319,2]
[378741662,1754998254270,-514.4750954,0.00020319,2]
[378741663,1754998254279,-151.0,0.00020319,2]
[378741664,1754998254289,-276.25127351,0.00020319,2]
[378741665,1754998254298,-500.0,0.00020319,2]
[378741666,1754998254308,-151.0,0.00020319,2]
[378741667,1754998254318,-151.0,0.00020319,2]
[378741668,1754998254327,-363.52941622,0.00020319,2]
[378741669,1754998254336,-153.67592904,0.00020319,2]
[378741670,1754998254346,-151.0,0.00020319,2]
[378741671,1754998254355,-303.02397957,0.00020319,2]
[378741672,1754998254364,-256.53556747,0.00020319,2]
[378741673,1754998254373,-248.24546373,0.00020319,2]
[378741674,1754998254383,-151.0,0.00020319,2]
[378741675,1754998254392,-500.0,0.00020319,2]
[378741676,1754998254402,-151.0,0.00020319,2]
[378741677,1754998254412,-168.0,0.00020324,2]
[378741678,1754998254421,-168.0,0.00020333,2]
[378741679,1754998254431,-5000.0,0.00020341,2]
[378741680,1754998254440,-299.5,0.00020409,2]
[378741681,1754998254449,-151.0,0.0002041,2]
[378741682,1754998254459,-151.0,0.0002041,2]
[378741683,1754998254468,-169.951023,0.0002041,2]
[378741684,1754998254477,-454.3182954,0.00020412,4]
[378741685,1754998254486,-2200.0,0.00020437,2]
[378741686,1754998254495,-1500.0,0.00020468,2]
[378741687,1754998254505,-1500.0,0.00020468,2]
[378741688,1754998254516,-1500.0,0.00020468,2]
[378741689,1754998254526,-1017.81377964,0.00020468,2]
[378741690,1754998254535,-1500.0,0.00020468,2]
[378741691,1754998254544,-1500.0,0.00020468,2]
[378741692,1754998254553,-1500.0,0.00020468,2]
[378741693,1754998254562,-1500.0,0.00020468,2]
[378741694,1754998254571,-460.0,0.00020481,2]
[378741695,1754998254580,-611.21,0.00020482,2]
[378741696,1754998254590,-484.87,0.00020482,2]
[378741697,1754998254599,-496.01,0.00020482,2]
[378741698,1754998254608,-637.61,0.00020482,2]
[378741699,1754998254618,-2239.7,0.00020482,2]
[378741700,1754998254628,-423.55010775,0.00020482,2]
[378741701,1754998254638,-460.0,0.00020482,2]
[378741702,1754998254647,-460.0,0.00020482,2]
[378741703,1754998254657,-3537.19,0.00020482,2]
[378741704,1754998254667,-590.83,0.00020482,2]
[378741705,1754998254676,-1389.16,0.00020482,2]
[378741706,1754998254686,-943.66,0.00020482,2]
[378741707,1754998254695,-460.0,0.00020482,2]
[378741708,1754998254705,-904.46,0.00020482,2]
[378741709,1754998254715,-1295.71,0.00020482,2]
[378741710,1754998254724,-518.19,0.00020482,2]
[378741711,1754998254733,-460.0,0.00020482,2]
[378741712,1754998254743,-1259.18,0.00020482,2]
[378741713,1754998254752,-479.31,0.00020482,2]
[378741714,1754998254762,-779.15,0.00020482,2]
[378741715,1754998254771,-723.23,0.00020482,2]
[378741716,1754998254781,-1003.25,0.00020482,2]
[378741717,1754998254790,-3048.5,0.00020482,2]
[378741718,1754998254799,-460.0,0.00020482,2]
[378741719,1754998254809,-564.06,0.00020482,2]
[378741720,1754998254818,-1844.16,0.00020482,2]
[378741721,1754998254828,-460.0,0.00020483,2]
[378741722,1754998254837,-886.07,0.00020483,2]
[378741723,1754998254847,-460.0,0.00020483,2]
[378741724,1754998254856,-637.77,0.00020483,2]
[378741725,1754998254865,-460.0,0.00020483,2]
[378741726,1754998254877,-504.21,0.00020483,2]
[378741727,1754998254886,-460.0,0.00020483,2]
[378741728,1754998254896,-474.64,0.00020483,2]
[378741729,1754998254905,-460.0,0.00020483,2]
[378741730,1754998254915,-460.0,0.00020483,2]
[378741731,1754998254925,-460.0,0.00020483,2]
[378741732,1754998254935,-460.0,0.00020483,2]
[378741733,1754998254944,-460.0,0.00020483,2]
[378741734,1754998254955,-151.0,0.00020483,2]
[378741735,1754998254964,-460.0,0.00020483,2]
[378741736,1754998254974,-151.0,0.00020483,2]
[378741737,1754998254983,-151.0,0.00020483,2]
[378741738,1754998254992,-620.23,0.00020483,2]
[378741739,1754998255001,-460.0,0.00020483,2]
[378741740,1754998255010,-460.0,0.00020483,2]
[378741741,1754998255020,-3145.559633,0.00020483,2]
[378741742,1754998255029,-3145.559633,0.00020483,2]
[378741743,1754998255038,-460.0,0.00020483,2]
[378741744,1754998255048,-901.27,0.00020483,2]
[378741745,1754998255057,-548.15,0.00020483,2]
[378741746,1754998255067,-811.75,0.00020483,2]
[378741747,1754998255077,-552.85,0.00020483,2]
[378741748,1754998255086,-463.69,0.00020483,2]
[378741749,1754998255095,-460.0,0.00020483,2]
[378741750,1754998255104,-2248.59,0.00020483,2]
[378741751,1754998255113,-460.0,0.00020483,2]
[378741752,1754998255123,-1065.48,0.00020483,2]
[378741753,1754998255132,-179.0958546,0.00020483,2]
[378741754,1754998255142,-647.39,0.00020483,2]
[378741755,1754998255151,-8580.32,0.00020483,2]
[378741756,1754998255161,-460.0,0.00020483,2]
[378741757,1754998255170,-2358.67,0.00020483,2]
[378741758,1754998255180,-1207.62,0.00020483,2]
[378741759,1754998255189,-374.96877639,0.00020483,2]
[378741760,1754998255198,-3336.58,0.00020483,2]
[378741761,1754998255208,-677.46,0.00020483,2]
[378741762,1754998255217,-826.8,0.00020483,2]
[378741763,1754998255226,-460.0,0.00020483,2]
[378741764,1754998255236,-484.1,0.00020483,2]
[378741765,1754998255246,-460.0,0.00020483,2]
[378741766,1754998255255,-2378.84,0.00020483,2]
[378741767,1754998255264,-1389.87,0.00020483,2]
[378741768,1754998255273,-1008.12,0.00020483,2]
[378741769,1754998255282,-1305.71,0.00020483,2]
[378741770,1754998255291,-888.95,0.00020483,2]
[378741771,1754998255301,-759.71,0.00020483,2]
[378741772,1754998255311,-726.84,0.00020483,2]
[378741773,1754998255321,-460.0,0.00020483,2]
[378741774,1754998255332,-672.44,0.00020483,2]
[378741775,1754998255341,-1402.11,0.00020483,2]
[378741776,1754998255350,-1862.43,0.00020483,2]
[378741777,1754998255359,-1768.4,0.00020483,2]
[378741778,1754998255369,-301.0,0.00020489,2]
[378741779,1754998255378,-2000.0,0.000205,5]
[378741780,1754998255390,-500.0,0.00020511,2]
[378741781,1754998255399,-500.0,0.00020511,2]
[378741782,1754998255409,-301.0,0.00020515,2]
[378741783,1754998255418,-1000.0,0.00020521,2]
[378741784,1754998255427,-500.93742005,0.00020521,2]
[378741785,1754998255442,-940.2549464,0.00020521,2]
[378741786,1754998255451,-1000.0,0.00020521,2]
[378741787,1754998255460,-685.94231455,0.00020521,2]
[378741788,1754998255472,-500.0,0.00020546,2]
[378741789,1754998255482,-168.50153959,0.00020546,2]
[378741790,1754998255491,-158.49501972,0.00020546,2]
[378741791,1754998255500,-400.20297603,0.00020546,2]
[378741792,1754998255510,-157.49121041,0.00020546,2]
[378741793,1754998255519,-340.16250563,0.00020546,2]
[378741794,1754998255528,-500.0,0.00020546,2]
[378741795,1754998255538,-500.0,0.00020546,2]
[378741796,1754998255547,-501.32411645,0.00020546,2]
[378741797,1754998255557,-500.0,0.00020546,2]
[378741798,1754998255566,-500.0,0.00020546,2]
[378741799,1754998255575,-500.0,0.00020546,2]
[378741800,1754998255584,-500.0,0.00020546,2]
[378741801,1754998255593,-500.0,0.00020546,2]
[378741802,1754998255602,-500.0,0.00020546,2]
[378741803,1754998255611,-500.0,0.00020546,2]
[378741804,1754998255620,-500.0,0.00020546,2]
[378741805,1754998255629,-500.0,0.00020546,2]
[378741806,1754998255639,-500.45548213,0.00020546,2]
[378741807,1754998255649,-621.67044864,0.00020546,2]
[378741808,1754998255658,-502.07243738,0.00020546,2]
[378741809,1754998255667,-500.0,0.00020546,2]
[378741810,1754998255677,-500.0,0.00020546,2]
[378741811,1754998255686,-154.46246951,0.00020546,2]
[378741812,1754998255696,-460.0,0.00020581,2]
[378741813,1754998255705,-1093.94,0.00020581,2]
[378741814,1754998255715,-460.0,0.00020581,2]
[378741815,1754998255724,-665.46,0.00020581,2]
[378741816,1754998255734,-460.0,0.00020581,2]
[378741817,1754998255743,-460.0,0.00020581,2]
[378741818,1754998255752,-460.0,0.00020581,2]
[378741819,1754998255762,-599.71,0.00020581,2]
[378741820,1754998255771,-460.0,0.00020581,2]
[378741821,1754998255818,-151.0,0.00020581,2]
[378741822,1754998255828,-151.0,0.00020581,2]
[378741823,1754998255837,-460.0,0.00020581,2]
[378741824,1754998255847,-1034.08,0.00020581,2]
[378741825,1754998255856,-460.0,0.00020581,2]
[378741826,1754998255865,-1358.1,0.00020581,2]
[378741827,1754998255877,-193.77035118,0.00020581,2]
[378741828,1754998255887,-460.0,0.00020581,2]
[378741829,1754998255896,-151.0,0.00020582,2]
[378741830,1754998255906,-301.0,0.00020588,2]
[378741831,1754998255918,-1585.0,0.00020593,2]
[378741832,1754998255929,-2475.0,0.00020593,2]
[378741833,1754998255938,-151.35259151,0.00020593,2]
[378741834,1754998255949,-500.0,0.00020593,2]
[378741835,1754998255959,-154.54553138,0.00020593,2]
[378741836,1754998255968,-250.41463105,0.00020593,2]
[378741837,1754998255977,-151.0,0.00020593,2]
[378741838,1754998255986,-151.0,0.00020593,2]
[378741839,1754998255995,-500.0,0.00020593,2]
[378741840,1754998256005,-151.0,0.00020593,2]
[378741841,1754998256014,-454.31829542,0.00020601,4]
[378741842,1754998256023,-9833.1544657,0.00020657,2]
[378741843,1754998256033,-299.5,0.00020674,2]
[378741844,1754998256042,-301.0,0.00020692,2]
[378741845,1754998256051,-151.0,0.00020745,2]
[378741846,1754998256061,-270.442973,0.00020745,2]
[378741847,1754998256070,-151.0,0.00020745,2]
[378741848,1754998256080,-151.0,0.00020745,2]